bitfinex-derivatives/quotes_ETHF0:USTF0_20250828
["timestamp","ask_amount","ask_price","bid_price","bid_amount"]
[1756420006507,0.4964,4506.5,4506.4,0.6512]
[1756420014717,0.2893,4506.5,4506.4,0.6512]
[1756420015010,0.05,4508.9,4506.9,0.2375]
[1756420015214,0.4964,4507.0,4506.9,0.4262]
[1756420020224,0.4964,4507.0,4506.9,0.82556]
[1756420023223,0.4964,4507.0,4506.9,1.05056]
[1756420028327,0.5051,4507.8,4507.7,0.83318]
[1756420028521,0.5051,4507.8,4507.7,1.05818]
[1756420031129,0.5051,4508.1,4508.0,0.83316]
[1756420038534,0.5051,4508.1,4508.0,0.4339]
[1756420039733,0.1977,4508.1,4507.7,0.39928]
[1756420039937,0.5051,4507.9,4507.8,0.6591]
[1756420040132,0.5051,4507.9,4507.8,1.05838]
[1756420040835,0.5051,4507.9,4507.8,0.6591]
[1756420041336,0.5051,4507.9,4507.8,0.4341]
[1756420041638,0.1977,4507.9,4507.8,0.225]
[1756420042238,0.5051,4507.9,4507.8,0.225]
[1756420044434,0.5051,4507.8,4507.7,0.4341]
[1756420044633,0.5051,4507.8,4507.7,0.6591]
[1756420044835,0.5051,4507.8,4507.7,0.4216]
[1756420045034,0.5051,4507.8,4507.7,0.6591]
[1756420046740,0.5051,4507.8,4507.7,0.4341]
[1756420046936,0.5051,4507.8,4507.7,0.225]
[1756420047741,0.5051,4507.8,4507.2,0.39933]
[1756420047941,0.5051,4507.8,4507.3,0.225]
[1756420048441,0.5051,4507.8,4507.4,0.2375]
[1756420048742,0.5051,4507.8,4507.3,0.225]
[1756420048936,0.5051,4507.8,4507.4,0.2375]
[1756420049136,0.5051,4507.8,4507.3,0.225]
[1756420049746,0.5051,4507.8,4507.4,0.2375]
[1756420050039,0.5051,4507.8,4507.3,0.225]
[1756420050239,0.5051,4507.8,4507.4,0.2375]
[1756420050441,0.5051,4507.8,4507.3,0.225]
[1756420051136,0.5051,4507.8,4507.4,0.2375]
[1756420051440,0.5051,4507.2,4507.1,0.4341]
[1756420051741,0.5051,4507.2,4507.1,0.6591]
[1756420052132,0.5051,4507.2,4507.1,0.4341]
[1756420052442,0.5051,4507.2,4507.1,0.6591]
[1756420052645,0.5051,4507.2,4507.1,0.225]
[1756420054046,0.3074,4507.1,4507.0,31.95]
[1756420054245,0.3074,4507.1,4507.0,32.175]
[1756420054647,0.3074,4507.1,4507.0,32.1875]
[1756420054847,0.3074,4507.1,4507.0,32.4125]
[1756420062562,0.3074,4507.1,4507.0,32.1875]
[1756420062762,0.3074,4507.1,4507.0,32.4125]
[1756420064865,0.3074,4507.1,4507.0,32.1875]
[1756420065066,0.3074,4507.1,4507.0,32.4125]
[1756420065761,0.3074,4507.1,4507.0,32.1875]
[1756420065963,0.3074,4507.1,4507.0,32.4125]
[1756420077370,0.3074,4507.1,4507.0,0.6624]
[1756420079572,0.3074,4507.1,4507.0,0.4374]
[1756420079770,0.3074,4507.1,4507.0,0.6624]
[1756420084574,0.5047,4507.1,4507.0,0.6624]
[1756420087674,0.5047,4507.1,4507.0,0.4374]
[1756420087874,0.5047,4507.1,4507.0,0.6624]
[1756420093986,0.5047,4507.1,4507.0,0.4374]
[1756420094183,0.5047,4507.1,4507.0,0.6624]
[1756420095385,0.5047,4507.1,4507.0,0.4374]
[1756420095687,0.5047,4507.1,4507.0,0.6624]
[1756420096185,0.5047,4507.1,4507.0,0.4374]
[1756420096381,0.3074,4507.1,4507.0,0.6624]
[1756420096687,0.2956,4508.7,4507.1,0.2375]
[1756420096986,0.2956,4508.5,4507.1,0.2375]
[1756420097187,0.2956,4508.3,4507.1,0.2375]
[1756420097388,0.1974,4507.2,4507.1,0.4321]
[1756420097588,0.493,4507.2,4507.1,0.4321]
[1756420108893,0.493,4507.2,4507.1,0.4196]
[1756420109198,0.493,4507.2,4507.1,0.225]
[1756420109900,0.493,4507.2,4507.1,0.6571]
[1756420110393,0.493,4507.2,4507.1,0.4321]
[1756420110599,0.493,4507.2,4507.1,0.6571]
[1756420111201,0.493,4507.2,4507.1,0.6561]
[1756420114600,0.1974,4506.5,4506.4,2.20211568]
[1756420114798,0.493,4506.5,4506.4,0.4615]
[1756420115005,0.493,4506.5,4506.4,0.6561]
[1756420117103,0.493,4506.5,4506.4,0.4321]
[1756420117404,0.493,4506.5,4506.4,0.224]
[1756420118607,0.1915,4506.3,4506.2,31.953]
[1756420118806,0.482,4506.3,4506.2,32.177]
[1756420119301,0.482,4506.3,4506.2,31.953]
[1756420119496,0.482,4506.3,4506.2,32.177]
[1756420120701,0.482,4506.3,4506.2,31.953]
[1756420120906,0.482,4506.3,4506.2,32.177]
[1756420121106,0.482,4506.3,4506.2,31.953]
[1756420121406,0.482,4506.3,4506.2,32.177]
[1756420124706,0.482,4506.3,4506.2,32.4146]
[1756420129831,0.482,4506.3,4506.2,32.1906]
[1756420130029,0.482,4506.3,4506.2,32.4146]
[1756420130228,0.482,4506.3,4506.2,0.6487]
[1756420130529,0.482,4506.3,4506.2,0.4247]
[1756420130729,0.482,4506.3,4506.2,0.6487]
[1756420135430,0.2905,4508.1,4506.3,0.2376]
[1756420135621,0.2905,4507.9,4506.3,0.2376]
[1756420135826,0.57193152,4507.8,4506.3,0.2376]
[1756420136037,0.86243152,4507.7,4506.3,0.2376]
[1756420136333,0.2905,4507.5,4506.3,0.63701]
[1756420136635,0.2905,4508.3,4506.4,0.861]
[1756420136836,0.57197216,4508.2,4506.5,0.39939]
[1756420137036,0.86247216,4508.1,4506.6,0.2376]
[1756420137228,0.57197216,4508.0,4506.6,0.2376]
[1756420137432,0.86247216,4507.9,4506.6,0.2376]
[1756420137639,1.19543288,4508.7,4506.6,0.2376]
[1756420137640,0.57197216,4507.8,4506.6,0.2376]
[1756420137837,0.86247216,4507.7,4506.6,0.2376]
[1756420138038,0.2905,4507.7,4506.6,0.2376]
[1756420139639,0.2905,4507.7,4506.7,0.224]
[1756420139834,0.2905,4507.7,4506.8,0.2376]
[1756420141435,0.57232682,4507.6,4506.8,0.2376]
[1756420141635,0.2905,4507.5,4506.8,0.2376]
[1756420142933,0.482,4507.1,4507.0,0.4247]
[1756420146545,0.482,4507.1,4507.0,0.6487]
[1756420149245,0.2839,4508.5,4507.0,0.4111]
[1756420149441,0.2839,4508.3,4507.1,0.2376]
[1756420149648,0.2839,4508.1,4507.1,0.2376]
[1756420149943,0.2839,4507.9,4507.1,0.2376]
[1756420155250,0.2839,4507.9,4507.1,0.63694]
[1756420155451,0.2839,4508.7,4507.1,0.2363]
[1756420155646,0.57229676,4508.6,4507.1,0.2363]
[1756420155841,0.85619676,4508.5,4507.1,0.2363]
[1756420156044,0.57229676,4508.4,4507.1,0.2363]
[1756420156239,0.85619676,4508.3,4507.1,0.2363]
[1756420156551,0.79413676,4508.2,4507.1,0.2363]
[1756420156750,0.85619676,4508.1,4507.1,0.2363]
[1756420156952,0.2839,4508.1,4507.1,0.2363]
[1756420158050,0.4884,4508.1,4508.0,0.2021]
[1756420158242,0.2839,4508.1,4508.0,0.4384]
[1756420158441,0.2839,4509.3,4508.1,0.2363]
[1756420158645,0.2839,4509.1,4508.1,0.2363]
[1756420158844,0.57328282,4509.0,4508.1,0.2363]
[1756420159046,0.85718282,4508.9,4508.1,0.2363]
[1756420159251,0.2839,4508.9,4508.1,0.2363]
[1756420159448,0.22178,4509.6,4508.1,0.2363]
[1756420159449,0.2839,4509.6,4508.2,0.2363]
[1756420159651,0.2839,4509.4,4508.2,0.2363]
[1756420159849,0.2839,4509.2,4508.2,0.2363]
[1756420160049,0.2045,4508.3,4508.2,0.4384]
[1756420160249,0.4884,4508.3,4508.2,0.4384]
[1756420165757,0.224,4509.7,4508.2,0.4384]
[1756420166064,0.4884,4508.4,4508.3,0.4384]
[1756420166463,0.4884,4508.4,4508.2,0.2363]
[1756420166859,0.2839,4508.3,4508.0,0.1]
[1756420167162,0.4884,4508.1,4508.0,0.3363]
[1756420167462,0.4884,4508.1,4508.0,0.5384]
[1756420168563,0.4884,4508.1,4508.0,0.4384]
[1756420168760,0.4884,4508.1,4508.0,0.224]
[1756420169858,0.2839,4508.0,4507.7,0.4603]
[1756420170059,0.4884,4507.8,4507.7,0.6624]
[1756420174567,0.4884,4507.8,4507.7,0.4384]
[1756420174758,0.4884,4507.8,4507.7,0.6624]
[1756420194673,0.4884,4507.8,4507.7,0.4384]
[1756420194977,0.4884,4507.8,4507.7,0.6624]
[1756420198680,0.2839,4507.8,4507.7,0.6624]
[1756420199381,1.19543288,4509.3,4507.7,0.6624]
[1756420199681,0.3116,4509.2,4507.8,0.2376]
[1756420199883,0.3116,4509.0,4507.8,0.2376]
[1756420200081,0.3116,4508.8,4507.8,0.2376]
[1756420200283,0.57311594,4508.7,4507.8,0.2376]
[1756420200484,0.3116,4508.5,4507.8,0.2376]
[1756420200682,0.5058,4508.3,4508.2,0.4332]
[1756420202375,1.19543288,4509.5,4508.2,0.1956]
[1756420202575,0.53339001,4509.4,4508.3,0.3316]
[1756420202780,0.3116,4509.2,4508.4,0.2376]
[1756420202986,0.3116,4509.0,4508.4,0.2376]
[1756420203279,9.1062691,4509.8,4508.8,0.4332]
[1756420203280,1.07890445,4508.9,4508.8,0.4332]
[1756420203486,0.5058,4508.9,4508.8,0.25085922]
[1756420204078,0.3116,4508.9,4508.8,0.25085922]
[1756420204883,0.5058,4508.9,4508.8,0.25085922]
[1756420205980,0.5058,4508.9,4508.3,0.094]
[1756420206183,0.5058,4508.9,4508.4,0.0221]
[1756420207083,31.951,4510.3,4508.8,0.0354]
[1756420207292,1.0859845,4510.2,4508.9,0.0221]
[1756420207583,0.193,4509.0,4508.9,0.0575]
[1756420207787,0.4849,4509.0,4508.9,0.0575]
[1756420208490,0.4849,4509.0,4508.9,0.224]
[1756420209092,0.4849,4509.0,4508.6,0.0221]
[1756420209392,0.4849,4509.0,4508.6,0.224]
[1756420210094,0.193,4508.4,4508.3,0.224]
[1756420210292,0.4849,4508.4,4508.3,0.224]
[1756420211181,0.193,4508.2,4508.1,0.224]
[1756420211387,0.4849,4508.2,4508.1,0.224]
[1756420211789,0.193,4508.2,4508.1,0.224]
[1756420211983,0.4849,4508.2,4508.1,0.224]
[1756420212387,0.4849,4508.2,4507.3,41.19932]
[1756420212589,0.2919,4508.1,4507.5,0.0209]
[1756420213589,0.4849,4507.8,4507.7,0.0544]
[1756420215794,0.2919,4507.8,4507.7,0.0544]
[1756420218098,0.2919,4507.8,4507.7,0.45369]
[1756420218299,0.059,4509.9,4507.7,0.45369]
[1756420218598,0.2919,4509.7,4507.8,0.0209]
[1756420218800,0.2919,4509.5,4507.8,0.0209]
[1756420218994,0.57248991,4509.4,4507.8,0.0209]
[1756420219194,0.86438991,4509.3,4507.8,0.0209]
[1756420219489,0.2919,4509.1,4507.9,0.0209]
[1756420219892,0.193,4508.0,4507.9,0.0544]
[1756420220095,0.2919,4509.7,4507.9,0.43277]
[1756420220293,0.2919,4509.5,4508.0,0.0209]
[1756420220494,0.2919,4509.3,4508.0,0.0209]
[1756420220696,0.22178,4509.8,4508.1,0.0209]
[1756420220897,0.4849,4508.3,4508.2,0.2784]
[1756420221401,0.2919,4508.3,4508.2,0.67764]
[1756420222196,0.059,4509.9,4508.4,0.39922]
[1756420222393,0.193,4508.6,4508.5,0.0544]
[1756420222588,0.4849,4508.6,4508.5,0.0544]
[1756420226895,0.193,4508.6,4508.5,0.224]
[1756420227102,0.4849,4508.6,4508.5,0.224]
[1756420229204,0.193,4508.6,4508.1,0.39925]
[1756420229404,0.193,4508.3,4508.2,0.2575]
[1756420229704,0.4849,4508.3,4508.2,0.2575]
[1756420229903,0.4849,4508.3,4508.2,0.2784]
[1756420231305,0.4849,4508.3,4508.2,0.67764]
[1756420232705,0.4849,4508.3,4508.2,0.2784]
[1756420233206,0.4849,4508.3,4508.2,0.67764]
[1756420234405,0.2919,4508.3,4508.2,0.67764]
[1756420234606,0.4849,4508.3,4508.2,0.224]
[1756420235104,0.4849,4508.3,4508.0,0.39926]
[1756420235307,0.4849,4508.2,4508.1,0.224]
[1756420237509,0.4999,4508.2,4508.1,0.224]
[1756420238107,0.4999,4508.2,4508.1,0.62325]
[1756420238307,0.3069,4508.2,4508.1,0.67885]
[1756420238504,0.5,4508.2,4508.1,0.45485]
[1756420238708,0.5,4508.2,4508.1,0.67885]
[1756420239411,0.5,4508.2,4508.1,0.45485]
[1756420239712,0.5,4508.2,4508.1,0.67885]
[1756420247415,0.5,4508.2,4508.1,0.2796]
[1756420248410,0.3069,4508.2,4508.1,0.2796]
[1756420248717,0.5,4508.2,4508.1,0.0556]
[1756420248918,0.5,4508.2,4508.1,0.2796]
[1756420250817,0.5,4508.2,4508.1,0.67885]
[1756420254121,0.5,4508.2,4508.1,0.2796]
[1756420255022,0.5,4508.2,4508.1,0.67885]
[1756420255723,0.5,4508.2,4508.1,0.2796]
[1756420256024,0.5,4508.2,4508.1,0.2582]
[1756420256224,0.3069,4508.1,4507.9,1.96461568]
[1756420256421,0.5,4508.0,4507.9,1.96461568]
[1756420256926,0.5,4508.0,4507.9,0.224]
[1756420257325,0.3069,4507.9,4507.5,31.945]
[1756420257514,0.1931,4507.7,4507.6,0.224]
[1756420257720,0.3069,4507.6,4507.5,31.945]
[1756420258022,0.3069,4507.6,4507.5,32.169]
[1756420261426,0.3069,4507.6,4507.5,32.1904]
[1756420262826,0.3069,4507.6,4507.5,31.9664]
[1756420263027,0.3069,4507.6,4507.5,32.1904]
[1756420263729,0.3069,4509.5,4507.6,0.3993]
[1756420263931,0.3069,4509.3,4507.8,0.0214]
[1756420264224,0.1931,4508.1,4508.0,0.0556]
[1756420264420,0.5,4508.1,4508.0,0.2796]
[1756420264620,1.19543288,4510.4,4508.2,0.39924]
[1756420264828,1.10126949,4510.3,4508.4,0.0214]
[1756420265027,0.5,4508.8,4508.7,0.0556]
[1756420265227,0.5,4508.8,4508.7,0.2796]
[1756420265429,0.3069,4508.8,4508.7,0.2796]
[1756420266127,1.19543288,4510.6,4508.7,0.2454]
[1756420266331,0.224,4510.7,4508.7,0.2454]
[1756420266332,0.7943011,4510.5,4508.9,0.39918]
[1756420266629,0.4997,4509.2,4509.1,0.0561]
[1756420266825,0.3024,4510.5,4509.1,0.0216]
[1756420267025,0.3024,4510.3,4509.6,0.0216]
[1756420267222,0.4997,4509.8,4509.7,0.2801]
[1756420268222,0.3024,4509.8,4509.7,0.2801]
[1756420268426,1.41943288,4511.6,4509.7,0.2801]
[1756420268427,0.3024,4511.6,4509.8,0.3991]
[1756420268630,0.79377663,4511.5,4510.0,0.39908]
[1756420268830,0.4997,4510.2,4510.1,0.0965]
[1756420269035,0.3024,4510.2,4510.1,0.0965]
[1756420269221,0.224,4512.3,4510.2,0.42066]
[1756420269426,0.3024,4512.1,4510.3,0.0216]
[1756420269628,0.3024,4511.9,4510.3,0.0216]
[1756420269932,0.3024,4511.7,4510.5,0.0216]
[1756420270127,0.1973,4510.8,4510.7,0.0561]
[1756420270328,0.4997,4510.8,4510.7,0.0561]
[1756420273934,0.4997,4510.8,4510.7,0.224]
[1756420275838,0.4997,4510.8,4510.7,0.2789]
[1756420276136,0.4997,4510.8,4510.7,0.224]
[1756420277231,0.4997,4510.8,4510.5,0.0211]
[1756420277437,0.3024,4510.7,4510.6,0.2451]
[1756420277638,0.4997,4510.7,4510.6,0.2451]
[1756420278536,0.4997,4510.7,4510.6,0.224]
[1756420278735,0.4997,4510.7,4509.9,0.39908]
[1756420278937,0.4997,4510.7,4510.1,0.0211]
[1756420281542,0.3024,4510.6,4510.2,0.0211]
[1756420281748,0.3024,4510.6,4510.5,0.0549]
[1756420282553,0.4997,4510.6,4510.5,0.0549]
[1756420285248,0.4997,4510.6,4510.5,0.2789]
[1756420285943,0.3024,4512.4,4510.6,0.0211]
[1756420286151,0.4997,4511.5,4511.4,0.45386]
[1756420286353,0.3024,4511.5,4511.4,0.53186]
[1756420286653,0.3024,4511.5,4511.4,40.9329]
[1756420287054,0.3024,4511.5,4511.4,40.8338]
[1756420287243,0.3024,4511.5,4511.4,41.024]
[1756420287447,0.3024,4511.5,4511.4,41.0451]
[1756420287649,0.3024,4511.5,4511.4,41.024]
[1756420287848,0.3024,4511.5,4511.4,41.0451]
[1756420288955,0.3024,4513.7,4511.5,0.0211]
[1756420289257,0.4997,4511.8,4511.7,0.45383]
[1756420289456,0.4997,4511.8,4511.7,0.0549]
[1756420291361,0.3024,4514.0,4512.1,0.0211]
[1756420291556,0.1973,4512.7,4512.6,0.0338]
[1756420291749,0.4997,4512.7,4512.6,0.0549]
[1756420292254,0.1973,4511.8,4511.7,0.0549]
[1756420292454,0.4997,4511.8,4511.7,0.67783]
[1756420292654,0.4997,4511.8,4511.7,41.47783]
[1756420293260,0.4997,4511.8,4511.7,41.25383]
[1756420293449,0.4997,4511.8,4511.7,41.47783]
[1756420293859,0.4997,4511.8,4511.7,41.0789]
[1756420295162,0.4997,4511.8,4511.7,40.8]
[1756420295351,0.4997,4511.8,4511.7,0.224]
[1756420295757,0.1973,4511.8,4511.4,40.8]
[1756420295959,0.1973,4511.6,4511.5,0.224]
[1756420296158,0.499,4511.6,4511.5,0.2785]
[1756420296459,0.499,4511.6,4511.5,0.0338]
[1756420296757,0.499,4511.6,4511.3,40.8]
[1756420297061,0.499,4511.6,4511.5,0.224]
[1756420298862,0.499,4511.6,4511.5,0.2777]
[1756420300449,0.3017,4511.9,4511.8,0.45262]
[1756420300650,0.22159,4514.1,4512.1,0.3989]
[1756420300863,0.87078264,4514.0,4512.3,0.0207]
[1756420301056,0.56908264,4513.9,4512.3,0.0207]
[1756420301254,0.3017,4513.7,4512.3,0.0207]
[1756420301455,0.2007,4512.4,4512.3,0.0537]
[1756420301659,0.5024,4512.4,4512.3,0.0537]
[1756420303459,0.3017,4514.5,4512.4,0.0207]
[1756420303653,0.5024,4512.7,4512.6,0.45255]
[1756420303857,0.5024,4512.7,4512.6,0.0537]
[1756420304757,0.5024,4512.7,4512.6,0.2777]
[1756420305259,0.3017,4512.7,4512.6,0.2777]
[1756420305462,0.5024,4512.7,4512.6,0.2777]
[1756420305656,0.3017,4512.7,4512.6,0.2777]
[1756420305855,0.01635566,4514.7,4512.9,0.0537]
[1756420305856,0.2007,4513.0,4512.9,0.0537]
[1756420306056,0.5024,4513.0,4512.9,0.0537]
[1756420306256,0.5024,4513.0,4512.9,0.2767]
[1756420307857,0.5024,4513.0,4512.9,0.256]
[1756420308564,0.5024,4513.0,4512.9,0.033]
[1756420308858,0.5024,4513.0,4512.9,0.2767]
[1756420311054,0.5024,4513.0,4512.9,0.67553]
[1756420316067,0.01635566,4514.7,4512.9,0.67553]
[1756420316266,0.3017,4514.5,4513.5,0.39877]
[1756420316571,0.22154,4514.6,4513.7,0.41946]
[1756420316770,0.01635566,4514.7,4513.7,0.41946]
[1756420316970,0.5024,4513.8,4513.7,0.033]
[1756420317266,1.19543288,4515.9,4513.9,0.39874]
[1756420317469,0.2007,4514.1,4514.0,0.89043]
[1756420317670,0.2007,4514.1,4514.0,41.69043]
[1756420317862,0.2007,4514.3,4514.2,0.60471]
[1756420318170,0.22147,4516.5,4514.0,40.8]
[1756420318370,0.5580803,4516.4,4514.6,0.2857]
[1756420318666,0.2007,4514.8,4514.7,0.7167]
[1756420319370,0.5024,4514.8,4514.7,0.225]
[1756420320268,0.5024,4514.8,4514.0,40.8]
[1756420320269,0.2007,4514.1,4514.0,40.8]
[1756420320462,0.5024,4514.1,4514.0,41.025]
[1756420321670,0.3017,4514.1,4514.0,41.3107]
[1756420326174,0.3017,4514.1,4514.0,41.0857]
[1756420326370,0.3017,4514.1,4514.0,41.3107]
[1756420327169,0.5024,4514.1,4514.0,0.7167]
[1756420327670,0.5024,4514.1,4514.0,41.5167]
[1756420328273,0.2077,4513.7,4513.6,0.3007]
[1756420328469,0.2077,4513.4,4513.3,0.2021]
[1756420328670,0.2077,4512.8,4512.7,0.5028]
[1756420328875,0.5191,4512.8,4512.7,0.7278]
[1756420329469,0.021,4515.3,4512.7,0.7278]
[1756420329675,0.2077,4512.9,4512.8,0.5028]
[1756420329985,0.5191,4512.9,4512.8,0.5028]
[1756420330583,0.5191,4512.9,4512.8,0.7278]
[1756420330979,1.19543288,4515.6,4512.8,0.4271]
[1756420331277,0.3114,4515.4,4512.9,0.3007]
[1756420331581,0.3114,4515.2,4513.5,0.3007]
[1756420331771,0.3114,4515.7,4513.7,0.3007]
[1756420331975,0.55818564,4515.6,4513.7,0.69946]
[1756420332176,0.55818564,4515.5,4513.9,0.3007]
[1756420332372,0.3114,4515.3,4514.2,0.39871]
[1756420332578,0.3114,4515.3,4514.4,0.3987]
[1756420332777,0.3114,4516.1,4514.5,0.4187]
[1756420333080,0.3114,4515.9,4514.5,0.4187]
[1756420333276,31.908,4516.2,4514.5,0.4187]
[1756420333476,0.2077,4514.6,4514.5,0.6208]
[1756420333785,0.5191,4514.6,4514.5,0.225]
[1756420335380,0.5191,4514.6,4514.5,0.4271]
[1756420335585,0.5191,4514.6,4514.5,0.7278]
[1756420336087,31.908,4516.2,4514.6,0.3007]
[1756420336288,0.77950524,4516.1,4514.6,0.3007]
[1756420336480,0.86943524,4516.0,4514.6,0.3007]
[1756420336674,0.86943524,4516.0,4514.5,0.62368]
[1756420336675,1.19543288,4517.0,4514.8,0.39866]
[1756420336982,0.5191,4515.0,4514.9,0.5028]
[1756420338379,0.5191,4515.0,4514.9,0.2021]
[1756420338575,0.5191,4515.0,4514.9,0.4281]
[1756420338779,0.5191,4515.0,4514.6,0.3007]
[1756420338981,0.2077,4514.7,4514.6,0.7288]
[1756420339182,0.5191,4514.7,4514.6,0.7288]
[1756420341484,0.5191,4514.7,4514.6,0.4281]
[1756420342485,0.5191,4514.7,4514.6,0.7288]
[1756420343291,0.3114,4516.1,4514.6,0.4281]
[1756420343489,0.5191,4514.8,4514.7,0.5028]
[1756420343789,0.2077,4514.8,4514.7,0.5028]
[1756420343985,0.5191,4514.8,4514.7,0.5028]
[1756420344585,0.5191,4514.8,4514.7,0.7278]
[1756420346382,1.37811561,4517.2,4514.8,0.3007]
[1756420346383,0.054,4516.9,4514.8,0.3007]
[1756420346588,0.86988422,4516.8,4514.8,0.3007]
[1756420346789,0.55848422,4516.7,4514.8,0.3007]
[1756420346989,0.5191,4514.9,4514.8,0.5028]
[1756420347294,0.5191,4514.9,4514.8,0.7278]
[1756420347684,1.37811561,4517.2,4514.9,0.3007]
[1756420347685,0.3114,4517.1,4514.9,0.3007]
[1756420347889,0.55851304,4517.0,4514.9,0.39865]
[1756420348090,0.3114,4516.8,4515.0,0.69934]
[1756420348290,0.55851304,4516.7,4515.1,0.69933]
[1756420348491,0.55851304,4516.6,4515.2,0.3007]
[1756420348700,0.5191,4515.5,4515.4,0.5028]
[1756420348894,0.5191,4515.5,4515.4,0.7278]
[1756420349390,0.5191,4515.5,4515.4,0.5028]
[1756420349586,0.3114,4517.1,4515.4,0.4271]
[1756420349794,0.3114,4516.9,4515.5,0.3007]
[1756420349987,0.3114,4516.7,4515.5,0.3007]
[1756420350295,0.2077,4515.8,4515.7,0.5028]
[1756420350591,0.3114,4517.3,4515.8,0.3007]
[1756420350789,0.3114,4517.3,4515.7,0.39858]
[1756420350790,0.3114,4517.1,4515.5,0.3007]
[1756420350990,0.2214,4517.9,4516.0,0.39855]
[1756420351294,0.55820351,4517.8,4516.1,0.093]
[1756420351591,0.3114,4518.0,4516.5,0.3007]
[1756420351796,0.3114,4518.0,4516.7,0.3007]
[1756420351992,0.5191,4516.8,4516.7,0.5028]
[1756420352295,0.5191,4516.8,4516.7,0.7288]
[1756420352486,0.5191,4516.8,4516.7,0.5028]
[1756420352685,1.8,4518.2,4516.4,0.226]
[1756420352686,0.2077,4516.5,4516.4,0.226]
[1756420352887,0.5191,4516.5,4516.4,0.226]
[1756420353089,0.2077,4516.3,4516.2,32.128]
[1756420353303,0.5191,4516.3,4516.2,32.128]
[1756420353600,0.3114,4515.8,4515.3,0.3007]
[1756420353907,0.5191,4515.4,4515.3,0.5028]
[1756420354101,0.5191,4515.4,4515.3,0.7288]
[1756420354499,0.5191,4515.4,4515.3,0.4281]
[1756420354801,0.5191,4515.4,4515.3,0.2021]
[1756420355003,0.5191,4515.4,4515.3,0.4281]
[1756420355300,0.5191,4515.4,4515.3,0.2021]
[1756420355599,0.5191,4515.4,4515.3,0.226]
[1756420356199,0.292,4515.3,4515.2,0.226]
[1756420356395,0.292,4515.2,4515.0,0.226]
[1756420356609,0.055,4517.4,4515.0,0.226]
[1756420356610,0.4838,4515.1,4515.0,0.226]
[1756420357202,0.4838,4515.1,4514.7,31.899]
[1756420357396,3.684,4518.1,4514.4,0.226]
[1756420357397,0.1918,4514.5,4514.4,0.226]
[1756420357608,0.4838,4514.5,4514.4,0.226]
[1756420358102,0.292,4514.4,4514.2,0.226]
[1756420358299,0.4838,4514.3,4514.2,0.226]
[1756420358498,0.4838,4514.3,4512.4,1.96461568]
[1756420358703,0.292,4515.0,4512.6,0.2859]
[1756420358997,0.4838,4512.8,4512.7,0.7022]
[1756420360403,0.1918,4512.8,4512.7,0.7022]
[1756420361207,0.049,4514.8,4512.8,0.2859]
[1756420361404,0.84919985,4514.7,4512.8,0.2859]
[1756420361715,0.292,4514.5,4512.8,0.2859]
[1756420362402,0.292,4514.3,4512.8,0.2859]
[1756420373813,0.51356,4514.3,4512.8,0.2859]
[1756420374913,0.4838,4512.9,4512.8,0.4762]
[1756420375112,0.4838,4512.9,4512.8,0.7022]
[1756420376119,0.03,4514.8,4512.9,0.2859]
[1756420376419,0.292,4514.6,4512.9,0.2859]
[1756420376920,0.17869758,4515.7,4512.9,0.2859]
[1756420376921,0.292,4515.6,4512.9,0.2859]
[1756420377111,0.292,4515.5,4512.8,0.226]
[1756420377312,0.22152,4515.5,4513.5,0.2859]
[1756420377515,0.299,4515.6,4513.7,0.2859]
[1756420377717,0.292,4515.6,4513.7,0.2859]
[1756420377918,0.2215,4515.5,4513.7,0.2859]
[1756420378220,0.292,4515.4,4513.7,0.2859]
[1756420379318,0.51351,4515.4,4513.9,0.2859]
[1756420379616,0.51353,4515.4,4513.9,0.2859]
[1756420379823,0.292,4515.4,4513.9,0.2859]
[1756420380025,0.2215,4515.3,4513.9,0.2859]
[1756420380219,0.1918,4514.0,4513.9,0.4762]
[1756420380422,0.4838,4514.0,4512.7,41.19885]
[1756420380618,0.292,4516.4,4513.9,0.2859]
[1756420380923,0.292,4516.2,4514.2,0.2859]
[1756420381224,0.22148,4516.3,4514.4,0.2859]
[1756420381415,0.292,4516.4,4514.4,0.2859]
[1756420381626,0.292,4516.9,4514.8,0.39866]
[1756420381922,0.292,4516.7,4515.0,0.2859]
[1756420382322,0.292,4516.5,4515.0,0.2859]
[1756420383721,0.51345,4516.5,4515.0,0.2859]
[1756420383918,0.4838,4515.1,4515.0,0.4762]
[1756420387430,0.2983,4517.2,4515.1,0.2811]
[1756420387630,1.98191561,4518.2,4514.9,0.034]
[1756420387631,0.2983,4517.0,4515.7,0.2811]
[1756420387830,0.2983,4518.0,4515.8,0.2811]
[1756420388032,0.55123291,4517.9,4515.8,0.2811]
[1756420388332,0.2983,4517.7,4515.9,0.2811]
[1756420388532,0.2983,4517.5,4515.9,0.2811]
[1756420388735,0.2983,4517.3,4515.9,0.2811]
[1756420394736,0.2983,4518.0,4516.0,0.2811]
[1756420395037,0.2983,4517.8,4516.0,0.2811]
[1756420395438,0.22139001,4517.7,4516.0,0.2811]
[1756420395637,0.2983,4517.6,4516.0,0.2811]
[1756420395938,0.51969001,4517.6,4516.0,0.2811]
[1756420396127,0.2214,4517.5,4516.0,0.2811]